bitfinex/quotes_BTCUSD_20251110
["timestamp","ask_amount","ask_price","bid_price","bid_amount"]
[1762743666270,0.00081177,106140.0,106130.0,0.72933299]
[1762743666485,0.00081177,106140.0,106130.0,1.16150499]
[1762743666913,0.00081177,106140.0,106130.0,1.07038442]
[1762743667333,0.0002,106170.0,106150.0,0.18841262]
[1762743667513,0.18905865,106170.0,106160.0,0.05036945]
[1762743667970,0.18905865,106170.0,106160.0,0.08395354]
[1762743667971,0.23213865,106170.0,106160.0,0.08395354]
[1762743668207,0.55513865,106170.0,106160.0,0.03358409]
[1762743668412,0.55583932,106170.0,106160.0,0.03358409]
[1762743668616,0.55783932,106170.0,106160.0,0.03358409]
[1762743670365,0.18839487,106160.0,106150.0,0.08395354]
[1762743670781,0.18839487,106160.0,106150.0,0.31070457]
[1762743670992,0.18839487,106160.0,106150.0,0.08870786]
[1762743671373,0.18839487,106160.0,106150.0,0.12223683]
[1762743671601,0.18839487,106160.0,106150.0,0.40697645]
[1762743671806,0.23011487,106160.0,106150.0,0.40697645]
[1762743672649,0.04172,106160.0,106150.0,0.40697645]
[1762743672874,0.18905865,106170.0,106160.0,0.18839487]
[1762743673084,0.0424414,106170.0,106160.0,0.31711233]
[1762743673736,0.0006814,106170.0,106160.0,0.31711233]
[1762743674157,0.0026814,106170.0,106160.0,0.31711233]
[1762743675004,0.0026814,106170.0,106160.0,0.2835991]
[1762743675216,0.0026814,106170.0,106160.0,0.31711233]
[1762743675439,0.0026814,106170.0,106160.0,0.3175833]
[1762743676302,0.0006814,106170.0,106160.0,0.31711233]
[1762743676511,0.0006814,106170.0,106160.0,0.62980304]
[1762743676732,0.0006814,106170.0,106160.0,0.33011233]
[1762743676947,0.002,106190.0,106160.0,0.96269375]
[1762743677210,0.00214436,106190.0,106180.0,0.25587638]
[1762743677409,0.00214436,106190.0,106180.0,0.33473735]
[1762743677612,0.00331192,106190.0,106180.0,0.35754735]
[1762743677823,0.19165357,106190.0,106180.0,0.35754735]
[1762743678029,0.19165357,106190.0,106180.0,0.35707687]
[1762743678238,0.00331192,106190.0,106180.0,0.35707687]
[1762743678436,0.00331192,106190.0,106180.0,0.35754776]
[1762743678627,0.19165357,106190.0,106180.0,0.35707687]
[1762743679716,0.19165357,106190.0,106180.0,0.097327]
[1762743679933,0.55806698,106190.0,106180.0,0.007]
[1762743680144,0.56222208,106190.0,106180.0,0.012]
[1762743680384,0.26253137,106190.0,106180.0,0.012]
[1762743680589,0.26253137,106190.0,106180.0,0.007]
[1762743681018,0.93530636,106190.0,106180.0,0.007]
[1762743681223,0.43186065,106190.0,106180.0,0.007]
[1762743681425,0.73155136,106190.0,106180.0,0.007]
[1762743681637,0.18837495,106180.0,106160.0,0.27030533]
[1762743681841,0.18837713,106170.0,106160.0,0.08144423]
[1762743682020,0.18837495,106180.0,106170.0,0.01517]
[1762743682261,0.21191987,106180.0,106170.0,0.04074319]
[1762743682488,0.21285401,106180.0,106170.0,0.01517]
[1762743682669,0.00093414,106180.0,106170.0,0.28011413]
[1762743683083,0.00214436,106190.0,106180.0,0.18835938]
[1762743683296,0.00214436,106190.0,106180.0,0.05759013]
[1762743683495,0.00237782,106190.0,106180.0,0.29405384]
[1762743683917,0.19071947,106190.0,106180.0,0.29405384]
[1762743684123,0.00237782,106190.0,106180.0,0.29358512]
[1762743684329,0.00237782,106190.0,106180.0,0.29405562]
[1762743685172,0.19071947,106190.0,106180.0,0.31914884]
[1762743685391,0.19071947,106190.0,106180.0,0.31867834]
[1762743685560,0.00237782,106190.0,106180.0,0.31867834]
[1762743685768,0.00237782,106190.0,106180.0,0.31914706]
[1762743685970,0.19071947,106190.0,106180.0,0.32756707]
[1762743686172,0.19071947,106190.0,106180.0,0.32709835]
[1762743686372,0.00237782,106190.0,106180.0,0.32709835]
[1762743686539,0.19071947,106190.0,106180.0,0.32756707]
[1762743686744,0.19071947,106190.0,106180.0,0.32709835]
[1762743686951,0.19071947,106190.0,106180.0,0.04868323]
[1762743687298,0.0102,106200.0,106180.0,0.93466277]
[1762743687492,0.0270545,106230.0,106220.0,0.18828845]
[1762743687720,0.0740272,106230.0,106220.0,0.24032845]
[1762743687930,0.0320272,106230.0,106220.0,0.31316098]
[1762743688154,0.26229793,106230.0,106220.0,0.12487253]
[1762743688370,0.0320272,106230.0,106220.0,0.24032845]
[1762743689052,0.01446827,106230.0,106220.0,0.24032845]
[1762743689311,0.01446827,106230.0,106220.0,0.24079916]
[1762743689700,0.01446827,106230.0,106220.0,0.24032845]
[1762743689899,0.01446827,106230.0,106220.0,0.59817883]
[1762743690689,0.01446827,106230.0,106220.0,0.59864914]
[1762743690875,0.202739,106230.0,106220.0,0.24079876]
[1762743691075,0.01446827,106230.0,106220.0,0.24532845]
[1762743691297,0.01446827,106230.0,106220.0,0.25279876]
[1762743692271,0.202739,106230.0,106220.0,0.25279876]
[1762743692465,0.202739,106230.0,106220.0,0.25232845]
[1762743692713,0.22260123,106230.0,106220.0,0.22776845]
[1762743692918,0.22260123,106230.0,106220.0,0.03948]
[1762743693122,0.22353471,106230.0,106220.0,0.03948]
[1762743693547,0.22353471,106230.0,106220.0,0.03448]
[1762743693751,0.22122471,106230.0,106220.0,0.24732845]
[1762743693956,0.26318471,106230.0,106220.0,0.34518223]
[1762743694171,0.03295398,106230.0,106220.0,0.34518223]
[1762743694352,0.26318471,106230.0,106220.0,0.33818223]
[1762743695137,0.26318471,106230.0,106220.0,0.14989378]
[1762743695338,0.26318471,106230.0,106220.0,0.24032845]
[1762743695973,0.26318471,106230.0,106220.0,0.05204]
[1762743696531,0.26314471,106230.0,106220.0,0.05204]
[1762743696869,0.24559248,106230.0,106220.0,0.05204]
[1762743697081,0.26315199,106230.0,106220.0,0.05204]
[1762743698182,0.26315199,106230.0,106220.0,0.10039596]
[1762743698524,0.26315199,106230.0,106220.0,0.05204]
[1762743698872,0.18828845,106220.0,106210.0,0.01231]
[1762743699089,0.18830618,106210.0,106200.0,0.03738959]
[1762743699304,0.18830618,106210.0,106190.0,0.09586184]
[1762743699305,0.18832391,106200.0,106190.0,0.09586184]
[1762743699533,0.00877946,106200.0,106190.0,0.37019083]
[1762743699758,0.19710337,106200.0,106190.0,0.38583168]
[1762743700004,0.19710337,106200.0,106190.0,0.19705239]
[1762743700211,0.19710337,106200.0,106190.0,0.38539404]
[1762743700414,0.19710337,106200.0,106190.0,0.19705239]
[1762743700618,0.21199337,106200.0,106190.0,0.07086754]
[1762743700830,0.53499337,106200.0,106190.0,0.0251128]
[1762743701044,0.54988337,106200.0,106190.0,0.0321128]
[1762743703863,0.20324938,106180.0,106170.0,0.09785656]
[1762743704079,0.21813938,106180.0,106170.0,0.09785656]
[1762743704252,0.21813938,106180.0,106170.0,0.0587019]
[1762743704835,0.21813938,106180.0,106170.0,0.0657019]
[1762743705112,0.21813938,106180.0,106170.0,0.0587019]
[1762743705428,0.22413938,106180.0,106170.0,0.0587019]
[1762743705868,0.52383009,106180.0,106170.0,0.0587019]
[1762743706077,0.52383009,106180.0,106170.0,0.07529746]
[1762743706305,0.22413938,106180.0,106170.0,0.07529746]
[1762743706511,0.22513938,106180.0,106170.0,0.0587019]
[1762743707528,0.22513938,106180.0,106170.0,0.02525716]
[1762743707979,0.54813938,106180.0,106170.0,0.02525716]
[1762743715878,0.54813938,106180.0,106170.0,0.00014436]
[1762743717052,0.58432166,106180.0,106170.0,0.00014436]
[1762743718344,0.88401237,106180.0,106170.0,0.00014436]
[1762743718559,0.58432166,106180.0,106170.0,0.00014436]
[1762743720199,0.62620166,106180.0,106170.0,0.00014436]
[1762743721766,0.007,106180.0,106170.0,0.5264022]
[1762743721971,0.007,106180.0,106170.0,0.30070086]
[1762743721972,0.04888,106180.0,106170.0,0.30070086]
[1762743722192,0.04888,106180.0,106170.0,0.35270786]
[1762743722398,0.007,106180.0,106170.0,0.67751137]
[1762743722744,0.007,106180.0,106170.0,0.71095611]
[1762743722976,0.007,106180.0,106170.0,0.71142687]
[1762743723192,0.007,106180.0,106170.0,0.41173616]
[1762743723393,0.007,106180.0,106170.0,0.68584331]
[1762743723599,0.001,106180.0,106170.0,0.68631424]
[1762743723798,0.24041355,106190.0,106180.0,0.18835938]
[1762743723961,0.24041355,106190.0,106180.0,0.06334158]
[1762743724165,0.25530355,106190.0,106180.0,0.02515158]
[1762743724548,0.25530355,106190.0,106170.0,0.04529594]
[1762743724549,0.18835938,106180.0,106170.0,0.04529594]
[1762743724757,0.2416843,106180.0,106170.0,0.04529594]
[1762743724902,0.21813938,106180.0,106170.0,0.04529594]
[1762743725108,0.21813938,106180.0,106170.0,0.03429594]
[1762743725316,0.21813938,106180.0,106170.0,0.02529594]
[1762743726957,0.54113938,106180.0,106170.0,0.00014436]
[1762743727162,0.54113938,106180.0,106170.0,0.02529594]
[1762743727370,0.54413938,106180.0,106170.0,0.02529594]
[1762743728460,0.88001237,106180.0,106170.0,0.02529594]
[1762743728677,0.58032166,106180.0,106170.0,0.02529594]
[1762743729339,0.57732166,106180.0,106170.0,0.02529594]
[1762743729548,0.58232166,106180.0,106170.0,0.02529594]
[1762743729782,0.58332166,106180.0,106170.0,0.02529594]
[1762743730193,0.54713938,106180.0,106170.0,0.05504636]
[1762743730454,0.54713938,106180.0,106170.0,0.63996681]
[1762743730455,0.006,106180.0,106170.0,0.63996681]
[1762743730672,0.04788,106180.0,106170.0,0.60652207]
[1762743730880,0.04788,106180.0,106170.0,0.34047484]
[1762743731312,0.04788,106180.0,106170.0,0.30683136]
[1762743731527,0.04688,106180.0,106170.0,0.30683136]
[1762743731747,0.005,106180.0,106170.0,0.30683136]
[1762743731959,0.2885643,106180.0,106170.0,0.08417105]
[1762743732172,0.26501938,106180.0,106170.0,0.0338016]
[1762743732594,0.24512938,106180.0,106170.0,0.0338016]
[1762743733054,0.24712938,106180.0,106170.0,0.0338016]
[1762743733259,0.24712938,106180.0,106170.0,0.27254818]
[1762743733466,0.24612938,106180.0,106170.0,0.13760027]
[1762743733695,0.25012938,106180.0,106170.0,0.13760027]
[1762743734103,0.26501938,106180.0,106170.0,0.13760027]
[1762743734374,0.25012938,106180.0,106170.0,0.13760027]
[1762743734790,0.005,106180.0,106170.0,0.3641674]
[1762743735006,0.23523938,106180.0,106170.0,0.3416574]
[1762743735214,0.04688,106180.0,106170.0,0.33051016]
[1762743735421,0.26501938,106180.0,106170.0,0.13761725]
[1762743735626,0.20824938,106180.0,106170.0,0.13761725]
[1762743735839,0.25012938,106180.0,106170.0,0.34167438]
[1762743736042,0.04688,106180.0,106170.0,0.27708094]
[1762743736244,0.23523938,106180.0,106170.0,0.27708094]
[1762743736453,0.04688,106180.0,106170.0,0.27708094]
[1762743736659,0.04688,106180.0,106170.0,0.33039142]
[1762743736861,0.23523938,106180.0,106170.0,0.33039142]
[1762743737064,0.25012938,106180.0,106170.0,0.05051381]
[1762743737278,0.23523938,106180.0,106170.0,0.25457094]
[1762743737490,0.04688,106180.0,106170.0,0.27708094]
[1762743738060,0.04688,106180.0,106170.0,0.32908794]
[1762743738662,0.001,106180.0,106170.0,0.74333733]
[1762743738871,0.04188,106190.0,106180.0,0.18834681]
[1762743739071,0.05952375,106190.0,106180.0,0.28545697]
[1762743739307,0.2478654,106190.0,106180.0,0.28545697]
[1762743739486,0.05952375,106190.0,106180.0,0.28545697]
[1762743739686,0.2580554,106190.0,106180.0,0.07460016]
[1762743739994,0.2620554,106190.0,106180.0,0.32667586]
[1762743740212,0.2620554,106190.0,106180.0,0.13831648]
[1762743740413,0.2620554,106190.0,106180.0,0.05892016]
[1762743740414,0.30065664,106190.0,106180.0,0.05892016]
[1762743740597,0.28576664,106190.0,106180.0,0.05892016]
[1762743740850,0.30065664,106190.0,106180.0,0.05892016]
[1762743741056,0.30065664,106190.0,106180.0,0.0252515]
[1762743741286,0.30165664,106190.0,106180.0,0.0252515]
[1762743744396,0.30165628,106190.0,106180.0,0.0252515]
[1762743745931,0.28676628,106190.0,106180.0,0.0252515]
[1762743746144,0.30165628,106190.0,106180.0,0.0252515]
[1762743746357,0.30165628,106190.0,106170.0,0.05906452]
[1762743746358,0.18835938,106180.0,106170.0,0.05906452]
[1762743746563,0.24443769,106180.0,106170.0,0.05906452]
[1762743746776,0.24460557,106180.0,106170.0,0.05906452]
[1762743747191,0.23578277,106180.0,106170.0,0.03381302]
[1762743747823,0.23578277,106180.0,106170.0,0.04223127]
[1762743748436,0.23778277,106180.0,106170.0,0.2306084]
[1762743748635,0.23778277,106180.0,106170.0,0.04223127]
[1762743748977,0.23778277,106180.0,106170.0,0.2306084]
[1762743749181,0.23578277,106180.0,106170.0,0.04223127]
[1762743749378,0.23978277,106180.0,106170.0,0.04223127]
[1762743749581,0.23978277,106180.0,106170.0,0.28097785]
[1762743749795,0.23978277,106180.0,106170.0,0.09260072]
[1762743750000,0.23978277,106180.0,106170.0,0.28097785]
[1762743750355,0.24078277,106180.0,106170.0,0.28097785]
[1762743750553,0.28262277,106180.0,106170.0,0.28097785]
[1762743750980,0.28262277,106180.0,106170.0,0.09260072]
[1762743751181,0.28262277,106180.0,106170.0,0.28097785]
[1762743751391,0.26497938,106180.0,106170.0,0.28097785]
[1762743752517,0.26497938,106180.0,106170.0,0.09260072]
[1762743754278,0.26497938,106180.0,106170.0,0.28097785]
[1762743754498,0.22313938,106180.0,106170.0,0.28097785]
[1762743754726,0.26497938,106180.0,106170.0,0.09260072]
[1762743755300,0.26497938,106180.0,106170.0,0.08418247]
[1762743755686,0.26728938,106180.0,106170.0,0.08418247]
[1762743759941,0.26728938,106180.0,106170.0,0.05051381]
[1762743760444,0.22544938,106180.0,106170.0,0.05051381]
[1762743760645,0.26724938,106180.0,106170.0,0.05051381]
[1762743762314,0.28490766,106180.0,106170.0,0.08424101]
[1762743764107,0.28490758,106180.0,106170.0,0.08424101]
[1762743764323,0.25512758,106180.0,106170.0,0.35898275]
[1762743764543,0.25512758,106180.0,106170.0,0.74114249]
[1762743764544,0.005,106180.0,106170.0,0.74114249]
[1762743764728,0.005,106180.0,106170.0,0.80830175]
[1762743764986,0.005,106180.0,106170.0,0.80877251]
[1762743765207,0.23262774,106200.0,106190.0,0.18834165]
[1762743765407,0.00023344,106200.0,106190.0,0.80241232]
[1762743765626,0.00023344,106200.0,106190.0,0.82817486]
[1762743765843,0.00023344,106200.0,106190.0,0.7939935]
[1762743766250,0.00023344,106200.0,106190.0,0.81976938]
[1762743766671,0.00023344,106200.0,106190.0,0.34254567]
[1762743766883,0.00023344,106200.0,106190.0,0.37621161]
[1762743767086,0.00223344,106200.0,106190.0,0.34254567]
[1762743767510,0.00023344,106200.0,106190.0,0.79044727]
[1762743767716,0.00023344,106200.0,106190.0,0.77379506]
[1762743767900,0.00023344,106200.0,106190.0,0.88389679]
[1762743768104,0.00023344,106200.0,106190.0,0.88342674]
[1762743768306,0.00023344,106200.0,106190.0,0.90006563]
[1762743768517,0.00023344,106200.0,106190.0,0.90053648]
[1762743768725,0.00023344,106200.0,106190.0,1.19842674]
[1762743768945,0.00023344,106200.0,106190.0,1.19889759]
[1762743770417,0.00023344,106200.0,106190.0,0.72015699]
[1762743771442,0.00023344,106200.0,106190.0,1.13440638]
[1762743772093,0.00023344,106200.0,106190.0,1.13393553]
[1762743772554,0.00023344,106200.0,106190.0,1.13440638]
[1762743772811,0.00023344,106200.0,106190.0,1.1007929]
[1762743773071,0.00023344,106200.0,106190.0,1.19889463]
[1762743773592,0.00023344,106200.0,106190.0,1.13437942]
[1762743774305,0.00023344,106200.0,106190.0,1.08381245]
[1762743774514,0.00023344,106200.0,106190.0,1.13438238]
[1762743774750,0.19716434,106220.0,106210.0,0.20412618]
[1762743774951,0.24580559,106230.0,106210.0,0.24336959]
[1762743775159,0.23040278,106230.0,106220.0,0.18828845]
[1762743775384,0.04213169,106230.0,106220.0,0.20410845]
[1762743775590,0.23040242,106230.0,106220.0,0.22694845]
[1762743775802,0.23040242,106230.0,106220.0,0.27244523]
[1762743776019,0.22174767,106230.0,106220.0,0.27244523]
[1762743776218,0.03347694,106230.0,106220.0,0.27244523]
[1762743776426,0.02628694,106230.0,106220.0,0.27244523]
[1762743776637,0.02628694,106230.0,106220.0,0.27291475]
[1762743776838,0.21455767,106230.0,106220.0,0.27291475]
[1762743777038,0.21755767,106230.0,106220.0,0.27244523]
[1762743777423,0.21255767,106230.0,106220.0,0.27244523]
[1762743777626,0.02428694,106230.0,106220.0,0.27244523]
[1762743777820,0.02828694,106230.0,106220.0,0.27291475]
[1762743778365,0.21655767,106230.0,106220.0,0.27291475]
[1762743778551,0.21655767,106230.0,106220.0,0.27244523]
[1762743778999,0.02828694,106230.0,106220.0,0.27244523]
[1762743779222,0.02828694,106230.0,106220.0,0.68669462]
[1762743779223,0.01068881,106230.0,106220.0,0.68669462]
[1762743779863,0.01068881,106230.0,106220.0,0.68716533]
[1762743780068,0.00668881,106230.0,106220.0,0.68716533]
[1762743780296,0.00568881,106230.0,106220.0,0.68716533]
[1762743780501,0.00768881,106230.0,106220.0,0.68716533]
[1762743780715,0.00838888,106230.0,106220.0,0.68716533]
[1762743781823,0.00838888,106230.0,106220.0,0.68669462]
[1762743782247,0.00838888,106230.0,106220.0,0.68716533]
[1762743782457,0.00838888,106230.0,106220.0,0.73726159]
[1762743783095,0.00838888,106230.0,106220.0,0.776792]
[1762743783311,0.00838888,106230.0,106220.0,0.78967994]
[1762743783578,0.00838888,106230.0,106220.0,0.80736332]
[1762743783782,0.00638888,106230.0,106220.0,0.80736332]
[1762743783998,0.00738888,106230.0,106220.0,0.83136332]
[1762743784208,0.00738888,106230.0,106220.0,0.31898534]
[1762743784414,0.00738888,106230.0,106220.0,0.32702128]
[1762743784631,0.19565961,106230.0,106220.0,0.32702128]
[1762743784866,0.19565961,106230.0,106220.0,0.32655136]
[1762743785489,0.19565961,106230.0,106220.0,0.13826291]
[1762743785715,0.19565961,106230.0,106220.0,0.41486173]
[1762743786166,0.00738888,106230.0,106220.0,0.82911112]
[1762743786387,0.00738888,106230.0,106220.0,0.85456626]
[1762743786610,0.00738888,106230.0,106220.0,0.87163742]
[1762743787847,0.00738888,106230.0,106220.0,0.8974133]
[1762743788350,0.0002,106240.0,106230.0,0.56327773]
[1762743788549,0.0002,106240.0,106230.0,1.23652244]
[1762743788753,0.0002,106240.0,106230.0,1.21035063]
[1762743789350,0.0002,106240.0,106230.0,1.22235063]
[1762743789865,0.0002,106240.0,106230.0,1.22735063]
[1762743790070,0.0002,106240.0,106230.0,1.17678366]
[1762743790281,0.0012,106240.0,106230.0,1.25135063]
[1762743790441,0.0012,106240.0,106230.0,1.20078366]
[1762743791099,0.0012,106240.0,106230.0,1.22583712]
[1762743791564,0.0012,106240.0,106230.0,1.22583713]
[1762743791985,0.0012,106240.0,106230.0,0.68005186]
[1762743793380,0.0012,106240.0,106230.0,0.35705186]
[1762743793597,0.18945301,106240.0,106230.0,0.11630346]
[1762743793811,0.26030522,106240.0,106230.0,0.041]
[1762743794017,0.2367736,106240.0,106230.0,0.041]
[1762743794209,0.2218836,106240.0,106230.0,0.041]
[1762743794739,0.2208836,106240.0,106230.0,0.017]
[1762743794938,0.2357736,106240.0,106230.0,0.017]
[1762743795160,0.2208836,106240.0,106230.0,0.18827073]
[1762743795373,0.01774059,106240.0,106230.0,0.32254196]
[1762743795576,0.01774059,106240.0,106230.0,0.64685226]
[1762743795777,0.0002,106240.0,106230.0,0.64685226]
[1762743795956,0.0002,106240.0,106230.0,0.64732173]
[1762743796181,0.0002,106240.0,106230.0,0.34806489]
[1762743796606,0.18845301,106240.0,106230.0,0.34806489]
[1762743796790,0.20600631,106240.0,106230.0,0.09288046]
[1762743796995,0.20600631,106240.0,106230.0,0.28115119]
[1762743797430,0.20600631,106240.0,106230.0,0.09288046]
[1762743797635,0.22089631,106240.0,106230.0,0.09288046]
[1762743797816,0.22089631,106240.0,106230.0,0.02505346]
[1762743798058,0.18827073,106230.0,106220.0,0.28120595]
[1762743798447,0.18827073,106230.0,106220.0,0.29702595]
[1762743798895,0.18845301,106240.0,106230.0,0.18827073]
[1762743799096,0.23855689,106240.0,106230.0,0.18827073]
[1762743799272,0.21502527,106240.0,106230.0,0.20409073]
[1762743799474,0.21502527,106240.0,106230.0,0.22914419]
[1762743799864,0.21502527,106240.0,106230.0,0.04087346]
[1762743800076,0.22991527,106240.0,106230.0,0.21332419]
[1762743800266,0.27167527,106240.0,106230.0,0.21332419]
[1762743800461,0.27167527,106240.0,106230.0,0.02505346]
[1762743800672,0.27167527,106240.0,106230.0,0.21332419]
[1762743800888,0.25674527,106240.0,106230.0,0.29897837]
[1762743801109,0.25874527,106240.0,106230.0,0.25198419]
[1762743801530,0.07049226,106240.0,106230.0,0.25198419]
[1762743801951,0.21702527,106240.0,106230.0,0.25198419]
[1762743802148,0.02877226,106240.0,106230.0,0.25198419]
[1762743802329,0.21702527,106240.0,106230.0,0.25198419]
[1762743802732,0.21702527,106240.0,106230.0,0.07430761]
[1762743802933,0.21702527,106240.0,106230.0,0.26257834]
[1762743803159,0.21702527,106240.0,106230.0,0.28538834]
[1762743803514,0.58224439,106240.0,106230.0,0.05848761]
[1762743803763,0.18827073,106230.0,106220.0,0.05848761]
[1762743803982,0.27128729,106230.0,106220.0,0.05848761]
[1762743804275,0.28617729,106230.0,106220.0,0.05848761]
[1762743805702,0.28817729,106230.0,106220.0,0.05848761]
[1762743805904,0.58743413,106230.0,106220.0,0.02505346]
[1762743806019,0.62361641,106230.0,106220.0,0.02505346]
[1762743806221,0.94661641,106230.0,106220.0,0.02505346]
[1762743806459,1.49309441,106230.0,106220.0,0.02505346]
[1762743806914,0.22447073,106220.0,106210.0,0.05848761]
[1762743807077,0.57987413,106220.0,106210.0,0.05863192]
[1762743808144,0.23254501,106220.0,106210.0,0.03357846]
[1762743808358,0.02057771,106220.0,106210.0,0.28920746]
[1762743808577,0.06433771,106220.0,106210.0,0.34367641]
[1762743808992,0.25262616,106220.0,106210.0,0.30495641]
[1762743809189,0.06433771,106220.0,106210.0,0.26639746]
[1762743809397,0.02257771,106220.0,106210.0,0.23864049]
[1762743809602,0.06433771,106220.0,106210.0,0.23864049]
[1762743809818,0.06433771,106220.0,106210.0,0.29064749]
[1762743810026,0.06433771,106220.0,106210.0,0.37523321]
[1762743810654,0.25262616,106220.0,106210.0,0.21583049]
[1762743811068,0.26751616,106220.0,106210.0,0.19992049]
[1762743811467,0.22575616,106220.0,106210.0,0.26707975]
[1762743811613,0.25262616,106220.0,106210.0,0.28298975]
[1762743811820,0.26751616,106220.0,106210.0,0.26707975]
[1762743812284,0.06433771,106220.0,106210.0,0.28298975]
[1762743812881,0.04676,106220.0,106210.0,0.28298975]
[1762743813322,0.04676,106220.0,106210.0,0.35525909]
[1762743813749,0.23504845,106220.0,106210.0,0.30579975]
[1762743814159,0.06437704,106220.0,106210.0,0.30579975]
[1762743814612,0.07318586,106220.0,106210.0,0.32260544]
[1762743815214,0.02261704,106220.0,106210.0,0.32260544]
[1762743815426,0.06433704,106220.0,106210.0,0.38046127]
[1762743816241,0.21090549,106220.0,106210.0,0.38046127]
[1762743816441,0.06433704,106220.0,106210.0,0.38046127]
[1762743817057,0.02261704,106220.0,106210.0,0.73172511]
[1762743817264,0.02261704,106220.0,106210.0,0.69813913]
[1762743817442,0.02261704,106220.0,106210.0,0.39888229]
[1762743817619,0.01961704,106220.0,106210.0,0.39888229]
[1762743817832,0.01761704,106220.0,106210.0,0.39888229]
[1762743818041,0.20890549,106220.0,106210.0,0.39888229]
[1762743818269,0.004,106220.0,106210.0,0.39888229]
[1762743819919,0.004,106220.0,106210.0,0.28901946]
[1762743820146,0.19228845,106220.0,106210.0,0.28901946]
[1762743820557,0.004,106220.0,106210.0,0.34102646]
[1762743820843,0.19228845,106220.0,106210.0,0.34102646]
[1762743821505,0.004,106220.0,106210.0,0.34102646]
[1762743821671,0.19228845,106220.0,106210.0,0.34102646]
[1762743821876,0.004,106220.0,106210.0,0.34102646]
[1762743822957,0.004,106220.0,106210.0,0.58990433]
[1762743823188,0.004,106220.0,106210.0,0.98006359]
[1762743823753,0.004,106220.0,106210.0,0.91337506]
[1762743824055,0.00043331,106240.0,106230.0,0.18827073]
[1762743824285,0.00043331,106240.0,106230.0,0.36292359]
[1762743824636,0.00043331,106240.0,106230.0,0.66218043]
[1762743825497,0.00143331,106240.0,106230.0,0.36292359]
[1762743825735,0.00143331,106240.0,106230.0,0.66218043]
[1762743825941,0.00143331,106240.0,106230.0,0.75398672]
[1762743826136,0.00443331,106240.0,106230.0,0.75398672]
[1762743826586,0.00443331,106240.0,106230.0,1.04388705]
[1762743826714,0.00443331,106240.0,106230.0,1.0594836]
[1762743827371,0.00043331,106240.0,106230.0,1.0594836]
[1762743827619,0.00043331,106240.0,106230.0,1.0684836]
[1762743829173,0.00043331,106240.0,106230.0,1.0784836]
[1762743829806,0.00043331,106240.0,106230.0,0.77922676]
[1762743831172,0.00043331,106240.0,106230.0,1.0784836]
[1762743831384,0.00043331,106240.0,106230.0,1.2253836]
[1762743832547,0.00043331,106240.0,106230.0,1.22491293]
[1762743833042,0.00043331,106240.0,106230.0,1.22538358]
[1762743833192,0.00043331,106240.0,106230.0,1.22491293]
[1762743833396,0.00043331,106240.0,106230.0,1.225382]
[1762743833602,0.00043331,106240.0,106230.0,1.17455741]
[1762743834248,0.00043331,106240.0,106230.0,1.17502806]
[1762743835410,0.00043331,106240.0,106230.0,1.24208153]
[1762743838719,0.00043331,106240.0,106230.0,1.15027524]
[1762743840572,0.00043331,106240.0,106230.0,1.14980459]
[1762743841358,0.00043331,106240.0,106230.0,1.17639756]
[1762743841564,0.00043331,106240.0,106230.0,1.08322019]
[1762743842147,0.00043331,106240.0,106230.0,1.10981316]
[1762743842402,0.00043331,106240.0,106230.0,1.20791489]
[1762743842562,0.00043331,106240.0,106230.0,1.18132192]
[1762743843313,0.00043331,106240.0,106230.0,0.88206508]
[1762743843545,0.00043331,106240.0,106230.0,1.24829309]
[1762743844228,0.00043331,106240.0,106230.0,1.00329136]
[1762743844423,0.00043331,106240.0,106230.0,0.70403452]
[1762743844855,0.00043331,106240.0,106230.0,1.00329136]
[1762743846402,0.00043331,106240.0,106230.0,1.00282229]
[1762743847236,0.00043331,106240.0,106230.0,0.93632059]
[1762743847414,0.00043331,106240.0,106230.0,1.03442232]
[1762743847633,0.00043331,106240.0,106230.0,1.03442352]
[1762743848211,0.00043331,106240.0,106230.0,1.06101649]
[1762743848412,0.00043331,106240.0,106230.0,1.14513706]
[1762743848569,0.00043331,106240.0,106230.0,1.15949204]
[1762743848735,0.00043331,106240.0,106230.0,1.17849204]
[1762743849092,0.00043331,106240.0,106230.0,1.16949204]
[1762743849297,0.00043331,106240.0,106230.0,1.18649204]
[1762743849815,1e-08,106240.0,106230.0,1.22220365]
[1762743849943,0.19495254,106290.0,106280.0,0.18818216]
[1762743850136,0.19495254,106290.0,106280.0,0.21554216]
[1762743850137,0.19448213,106290.0,106280.0,0.21554216]
[1762743850344,0.19767254,106300.0,106280.0,0.27302929]
[1762743850551,0.22405356,106300.0,106290.0,0.02736]
[1762743850758,0.19441445,106290.0,106280.0,0.04524713]
[1762743851055,0.19489567,106290.0,106280.0,0.01128]
[1762743851391,0.19489567,106290.0,106280.0,0.23906216]
[1762743851634,0.20089567,106290.0,106280.0,0.05088]
[1762743851812,0.21578567,106290.0,106280.0,0.01128]
[1762743852015,0.19464567,106290.0,106280.0,0.05088]
[1762743852215,0.00048122,106290.0,106280.0,0.32088435]
[1762743852418,0.19464567,106290.0,106280.0,0.37259412]
[1762743852627,0.19464567,106290.0,106280.0,0.21790103]
[1762743852844,0.19464567,106290.0,106280.0,0.40608319]
[1762743853028,0.19464567,106290.0,106280.0,0.21790103]
[1762743853478,0.19464567,106290.0,106280.0,0.18808584]
[1762743853651,0.19464567,106290.0,106280.0,0.34967503]
[1762743853856,0.19464567,106290.0,106280.0,0.16149287]
[1762743854259,0.19464567,106290.0,106280.0,0.1280038]
[1762743854664,0.00648122,106290.0,106280.0,0.63918596]
[1762743854991,0.19464567,106290.0,106280.0,0.77077676]
[1762743855223,0.00648122,106290.0,106280.0,0.79736973]
[1762743855661,0.00764713,106290.0,106280.0,0.79736973]
[1762743856313,0.19581158,106290.0,106280.0,0.79736973]
[1762743856532,0.00764713,106290.0,106280.0,0.79736973]
[1762743856738,0.19581158,106290.0,106280.0,0.79736973]
[1762743856948,0.00764713,106290.0,106280.0,0.77077676]
[1762743857186,0.19581158,106290.0,106280.0,0.79736306]
[1762743857618,0.00764713,106290.0,106280.0,0.79736306]
[1762743858229,0.19581158,106290.0,106280.0,0.79736306]
[1762743858736,0.19581158,106290.0,106280.0,0.67267503]
[1762743858888,0.19581158,106290.0,106280.0,0.48449287]
[1762743859080,0.00764713,106290.0,106280.0,0.67267503]
[1762743859301,0.19581158,106290.0,106280.0,0.69779184]
[1762743859511,0.20206158,106290.0,106280.0,0.18660968]
[1762743860139,0.23184158,106290.0,106280.0,0.03348907]
[1762743860344,0.27356158,106290.0,106280.0,0.05857688]
[1762743860541,0.72309479,106290.0,106280.0,0.05857688]
[1762743860742,0.72309479,106290.0,106280.0,0.02508781]
[1762743860941,0.81426639,106290.0,106280.0,0.02508781]
[1762743861162,0.81426639,106290.0,106270.0,0.03348907]
[1762743861163,0.18818216,106280.0,106270.0,0.05857688]
[1762743861310,0.24148493,106280.0,106270.0,0.05857688]
[1762743861518,0.21796216,106280.0,106270.0,0.05857688]
[1762743861727,0.20307216,106280.0,106270.0,0.03348907]
[1762743862380,0.22396216,106280.0,106270.0,0.08372268]